[Event "Late-Titled-Tuesday-Blitz-March-12-2024"]
[Site "Chess.com"]
[Date "2024.03.12"]
[Round "5"]
[White "steepedgames"]
[Black "Rodalquilar"]
[Result "0-1"]
[WhiteElo "2556"]
[BlackElo "2796"]
[TimeControl "180+1"]
[EndTime "14:52:18 PDT"]
[Termination "Rodalquilar won by resignation"]

1. d4 {[%clk 0:03:00.9]} 1... d5 {[%clk 0:03:00.3]} 2. Nf3 {[%clk 0:03:00.3]}
2... Nf6 {[%clk 0:03:00.4]} 3. Bf4 {[%clk 0:03:00.9]} 3... e6 {[%clk 0:03:00.9]}
4. e3 {[%clk 0:03:01.1]} 4... Bd6 {[%clk 0:03:00.9]} 5. Bg3 {[%clk 0:03:01.4]}
5... O-O {[%clk 0:03:01]} 6. Bd3 {[%clk 0:03:00.8]} 6... c5 {[%clk 0:03:01.1]}
7. c3 {[%clk 0:03:00.7]} 7... Qc7 {[%clk 0:03:01.4]} 8. Nbd2 {[%clk 0:02:58.8]}
8... Nbd7 {[%clk 0:03:01.7]} 9. Bxd6 {[%clk 0:02:48.4]} 9... Qxd6 {[%clk
0:03:01.8]} 10. e4 {[%clk 0:02:48.3]} 10... dxe4 {[%clk 0:03:01.6]} 11. Nxe4
{[%clk 0:02:48.5]} 11... Nxe4 {[%clk 0:02:58.4]} 12. Bxe4 {[%clk 0:02:49.4]}
12... Nf6 {[%clk 0:02:56.7]} 13. Bc2 {[%clk 0:02:44.2]} 13... b6 {[%clk
0:02:52.6]} 14. dxc5 {[%clk 0:02:41.8]} 14... Qxc5 {[%clk 0:02:51.7]} 15. Qd4
{[%clk 0:02:41.2]} 15... Qxd4 {[%clk 0:02:48.5]} 16. Nxd4 {[%clk 0:02:41.8]}
16... Bb7 {[%clk 0:02:48.9]} 17. O-O {[%clk 0:02:35.9]} 17... a6 {[%clk
0:02:46.1]} 18. Rfd1 {[%clk 0:02:21.7]} 18... Rac8 {[%clk 0:02:44.6]} 19. a4
{[%clk 0:02:19.9]} 19... Rfd8 {[%clk 0:02:43.1]} 20. f3 {[%clk 0:02:08.2]} 20...
Kf8 {[%clk 0:02:42.9]} 21. Kf2 {[%clk 0:02:07.5]} 21... Ke7 {[%clk 0:02:43.2]}
22. Re1 {[%clk 0:01:55.4]} 22... g5 {[%clk 0:02:39.3]} 23. Re5 {[%clk
0:01:42.7]} 23... h6 {[%clk 0:02:39.1]} 24. Nf5+ {[%clk 0:01:31.7]} 24... Kf8
{[%clk 0:02:39.4]} 25. Nxh6 {[%clk 0:01:31.8]} 25... Rd2+ {[%clk 0:02:28.4]} 26.
Re2 {[%clk 0:01:32]} 26... Rcd8 {[%clk 0:02:28.9]} 27. Re1 {[%clk 0:01:27.4]}
27... a5 {[%clk 0:02:22.7]} 28. h3 {[%clk 0:01:19.1]} 28... Ba6 {[%clk
0:02:21.8]} 29. g3 {[%clk 0:01:02.2]} 29... Bxe2 {[%clk 0:02:16.2]} 30. Rxe2
{[%clk 0:01:03.1]} 30... Nh5 {[%clk 0:02:11.1]} 31. Ke3 {[%clk 0:00:41.8]} 31...
Nxg3 {[%clk 0:01:59.4]} 32. Rxd2 {[%clk 0:00:25.2]} 32... Nf1+ {[%clk
0:01:59.4]} 33. Ke4 {[%clk 0:00:25.6]} 33... Nxd2+ {[%clk 0:01:45.7]} 34. Ke5
{[%clk 0:00:25.8]} 34... Kg7 {[%clk 0:01:46.1]} 35. Ng4 {[%clk 0:00:22.4]} 0-1

[Event "Late-Titled-Tuesday-Blitz-March-12-2024"]
[Site "Chess.com"]
[Date "2024.03.12"]
[Round "5"]
[White "SamuraisOfChess"]
[Black "janhelmer03"]
[Result "1-0"]
[WhiteElo "2580"]
[BlackElo "2404"]
[TimeControl "180+1"]
[EndTime "14:52:22 PDT"]
[Termination "SamuraisOfChess won on time"]

1. e4 {[%clk 0:02:59.8]} 1... c5 {[%clk 0:02:53.1]} 2. Nf3 {[%clk 0:03:00]} 2...
d6 {[%clk 0:02:53.2]} 3. d4 {[%clk 0:03:00.4]} 3... cxd4 {[%clk 0:02:54.1]} 4.
Nxd4 {[%clk 0:03:00.9]} 4... Nf6 {[%clk 0:02:55]} 5. f3 {[%clk 0:03:01.2]} 5...
g6 {[%clk 0:02:55.2]} 6. c4 {[%clk 0:03:01.4]} 6... Bg7 {[%clk 0:02:55.1]} 7.
Nc3 {[%clk 0:03:01.8]} 7... Nc6 {[%clk 0:02:55.1]} 8. Be3 {[%clk 0:03:02.3]}
8... O-O {[%clk 0:02:54.1]} 9. Be2 {[%clk 0:03:02.7]} 9... a6 {[%clk 0:02:53.2]}
10. O-O {[%clk 0:03:03.4]} 10... Bd7 {[%clk 0:02:46.7]} 11. Qd2 {[%clk
0:03:02.7]} 11... Rc8 {[%clk 0:02:23.6]} 12. Rac1 {[%clk 0:03:02.3]} 12... Ne5
{[%clk 0:02:03.3]} 13. b3 {[%clk 0:03:01.5]} 13... h5 {[%clk 0:01:59.9]} 14. h3
{[%clk 0:03:00.7]} 14... Kh7 {[%clk 0:01:56.9]} 15. f4 {[%clk 0:02:58.8]} 15...
Nc6 {[%clk 0:01:56.2]} 16. f5 {[%clk 0:02:46]} 16... Nxd4 {[%clk 0:01:48.5]} 17.
Bxd4 {[%clk 0:02:45.5]} 17... Qa5 {[%clk 0:01:40]} 18. Bd3 {[%clk 0:02:35.3]}
18... b5 {[%clk 0:01:04.4]} 19. Be3 {[%clk 0:02:27.8]} 19... bxc4 {[%clk
0:00:46.8]} 20. Bxc4 {[%clk 0:02:27.2]} 20... Bc6 {[%clk 0:00:36]} 21. Qd3
{[%clk 0:02:21.9]} 21... Bb7 {[%clk 0:00:10.9]} 22. e5 {[%clk 0:02:14.5]} 22...
dxe5 {[%clk 0:00:07.2]} 23. Bxf7 {[%clk 0:02:14.1]} 23... Rxf7 {[%clk
0:00:06.5]} 24. fxg6+ {[%clk 0:02:14.5]} 24... Kg8 {[%clk 0:00:07.4]} 25. gxf7+
{[%clk 0:02:15]} 25... Kxf7 {[%clk 0:00:08.3]} 26. Ne2 {[%clk 0:02:05.8]} 26...
Rd8 {[%clk 0:00:04.9]} 27. Qc4+ {[%clk 0:02:01.9]} 27... Bd5 {[%clk 0:00:04.9]}
28. Qc7 {[%clk 0:02:01.7]} 28... Qxc7 {[%clk 0:00:03.2]} 29. Rxc7 {[%clk
0:02:01.4]} 29... Be6 {[%clk 0:00:03]} 30. Bc5 {[%clk 0:02:00.1]} 30... Bf8
{[%clk 0:00:01.8]} 31. Ng3 {[%clk 0:01:57.3]} 1-0

[Event "Late-Titled-Tuesday-Blitz-March-12-2024"]
[Site "Chess.com"]
[Date "2024.03.12"]
[Round "5"]
[White "CarlosjPineror"]
[Black "Zampronha1971"]
[Result "0-1"]
[WhiteElo "2568"]
[BlackElo "2343"]
[TimeControl "180+1"]
[EndTime "14:52:25 PDT"]
[Termination "Zampronha1971 won by resignation"]

1. e4 {[%clk 0:03:00.9]} 1... c5 {[%clk 0:02:59.3]} 2. Nf3 {[%clk 0:03:00.8]}
2... e6 {[%clk 0:03:00]} 3. g3 {[%clk 0:03:00.8]} 3... Nc6 {[%clk 0:02:58.7]} 4.
Bg2 {[%clk 0:03:01.1]} 4... d5 {[%clk 0:02:59.6]} 5. exd5 {[%clk 0:03:01]} 5...
exd5 {[%clk 0:03:00.5]} 6. O-O {[%clk 0:03:01.4]} 6... Nf6 {[%clk 0:03:01.4]} 7.
Re1+ {[%clk 0:03:01.9]} 7... Be7 {[%clk 0:03:02]} 8. d4 {[%clk 0:03:02.7]} 8...
O-O {[%clk 0:03:02.2]} 9. c3 {[%clk 0:03:02.6]} 9... Bg4 {[%clk 0:03:00.6]} 10.
h3 {[%clk 0:03:02.7]} 10... Bxf3 {[%clk 0:02:58.6]} 11. Bxf3 {[%clk 0:02:58.8]}
11... cxd4 {[%clk 0:02:59.5]} 12. cxd4 {[%clk 0:02:57.7]} 12... Qb6 {[%clk
0:02:53.8]} 13. Nc3 {[%clk 0:02:55.3]} 13... Rad8 {[%clk 0:02:53.9]} 14. Bg2
{[%clk 0:02:08]} 14... Rfe8 {[%clk 0:02:49.9]} 15. Ne2 {[%clk 0:02:03.7]} 15...
Bb4 {[%clk 0:02:41.6]} 16. Rf1 {[%clk 0:01:42.5]} 16... h6 {[%clk 0:02:38]} 17.
a3 {[%clk 0:01:40.1]} 17... Bf8 {[%clk 0:02:36.6]} 18. Rb1 {[%clk 0:01:17.7]}
18... a5 {[%clk 0:02:34.4]} 19. Be3 {[%clk 0:01:16.7]} 19... Ne4 {[%clk
0:02:31.1]} 20. Qd3 {[%clk 0:01:11.5]} 20... g6 {[%clk 0:02:11.6]} 21. Rfd1
{[%clk 0:01:07.8]} 21... Bg7 {[%clk 0:02:09.8]} 22. Kh2 {[%clk 0:00:48.1]} 22...
Ne7 {[%clk 0:02:01.3]} 23. Nc3 {[%clk 0:00:46.3]} 23... Nf5 {[%clk 0:01:49.4]}
24. Nxd5 {[%clk 0:00:40.2]} 24... Rxd5 {[%clk 0:01:43.1]} 25. Bxe4 {[%clk
0:00:40.2]} 25... Rb5 {[%clk 0:01:39.2]} 26. Bxf5 {[%clk 0:00:19.3]} 26... Rxf5
{[%clk 0:01:39.9]} 27. d5 {[%clk 0:00:19.7]} 27... Rxf2+ {[%clk 0:01:34.3]} 28.
Bxf2 {[%clk 0:00:16.1]} 28... Qxf2+ {[%clk 0:01:35.2]} 29. Kh1 {[%clk
0:00:16.8]} 29... Re2 {[%clk 0:01:34.4]} 0-1

[Event "Late-Titled-Tuesday-Blitz-March-12-2024"]
[Site "Chess.com"]
[Date "2024.03.12"]
[Round "5"]
[White "cristiano78"]
[Black "Thjop"]
[Result "0-1"]
[WhiteElo "2267"]
[BlackElo "2656"]
[TimeControl "180+1"]
[EndTime "14:52:25 PDT"]
[Termination "Thjop won by resignation"]

1. d4 {[%clk 0:03:00.9]} 1... Nf6 {[%clk 0:02:59.9]} 2. c4 {[%clk 0:03:00.7]}
2... g6 {[%clk 0:03:00.2]} 3. Nc3 {[%clk 0:03:00.6]} 3... Bg7 {[%clk 0:03:00.8]}
4. e4 {[%clk 0:03:00.7]} 4... O-O {[%clk 0:03:01.7]} 5. Nf3 {[%clk 0:03:00.8]}
5... d6 {[%clk 0:03:02.2]} 6. Be2 {[%clk 0:03:00.9]} 6... e5 {[%clk 0:03:02.6]}
7. O-O {[%clk 0:03:00.9]} 7... Nc6 {[%clk 0:03:01.6]} 8. d5 {[%clk 0:03:00.9]}
8... Ne7 {[%clk 0:02:56.3]} 9. Be3 {[%clk 0:02:59.6]} 9... Ng4 {[%clk
0:02:54.5]} 10. Bg5 {[%clk 0:02:56]} 10... f6 {[%clk 0:02:53.8]} 11. Bh4 {[%clk
0:02:55]} 11... h5 {[%clk 0:02:54.1]} 12. h3 {[%clk 0:02:54.1]} 12... Nh6 {[%clk
0:02:54]} 13. Nd2 {[%clk 0:02:52.9]} 13... Bd7 {[%clk 0:02:48.8]} 14. f3 {[%clk
0:02:52]} 14... g5 {[%clk 0:02:39.1]} 15. Bf2 {[%clk 0:02:47.8]} 15... Ng6
{[%clk 0:02:39]} 16. b4 {[%clk 0:02:45.9]} 16... a5 {[%clk 0:02:35]} 17. a3
{[%clk 0:02:43.4]} 17... b6 {[%clk 0:02:32.4]} 18. c5 {[%clk 0:02:43.1]} 18...
axb4 {[%clk 0:02:32.8]} 19. axb4 {[%clk 0:02:42.8]} 19... Rxa1 {[%clk
0:02:31.8]} 20. Qxa1 {[%clk 0:02:42.1]} 20... bxc5 {[%clk 0:02:32.7]} 21. bxc5
{[%clk 0:02:41.7]} 21... g4 {[%clk 0:02:32.8]} 22. hxg4 {[%clk 0:02:40.5]} 22...
hxg4 {[%clk 0:02:33.1]} 23. Nc4 {[%clk 0:02:39.4]} 23... f5 {[%clk 0:01:53]} 24.
exf5 {[%clk 0:02:36.6]} 24... Bxf5 {[%clk 0:01:31.4]} 25. cxd6 {[%clk
0:02:35.7]} 25... cxd6 {[%clk 0:01:31.7]} 26. Qa3 {[%clk 0:02:35.2]} 26... Nf4
{[%clk 0:01:15.4]} 27. Qxd6 {[%clk 0:02:32.1]} 27... Nxe2+ {[%clk 0:01:12.5]}
28. Nxe2 {[%clk 0:02:31.5]} 28... Bd3 {[%clk 0:01:10.9]} 29. Qxd8 {[%clk
0:02:23.3]} 29... Rxd8 {[%clk 0:01:11.8]} 30. Bh4 {[%clk 0:02:12.6]} 30... Rb8
{[%clk 0:00:57.9]} 31. Nd6 {[%clk 0:01:53.3]} 31... Bxe2 {[%clk 0:00:56]} 32.
Re1 {[%clk 0:01:52.6]} 32... gxf3 {[%clk 0:00:56]} 33. gxf3 {[%clk 0:01:52.4]}
33... Bxf3 {[%clk 0:00:55.3]} 34. Ne4 {[%clk 0:01:51.4]} 34... Bxe4 {[%clk
0:00:54.1]} 35. Rxe4 {[%clk 0:01:51.2]} 35... Nf5 {[%clk 0:00:54.2]} 36. Bf2
{[%clk 0:01:48.1]} 36... Rb5 {[%clk 0:00:50.7]} 37. d6 {[%clk 0:01:35.8]} 37...
Nxd6 {[%clk 0:00:48.9]} 38. Rg4 {[%clk 0:01:36.7]} 38... Kf7 {[%clk 0:00:47.5]}
39. Kg2 {[%clk 0:01:33.6]} 39... Bf6 {[%clk 0:00:47.3]} 40. Bh4 {[%clk
0:01:32.2]} 40... Bxh4 {[%clk 0:00:46.1]} 41. Rxh4 {[%clk 0:01:31.4]} 41... Ke6
{[%clk 0:00:46.4]} 0-1

[Event "Late-Titled-Tuesday-Blitz-March-12-2024"]
[Site "Chess.com"]
[Date "2024.03.12"]
[Round "5"]
[White "katharinareinecke"]
[Black "javierfreilemartin"]
[Result "0-1"]
[WhiteElo "1971"]
[BlackElo "2296"]
[TimeControl "180+1"]
[EndTime "14:52:28 PDT"]
[Termination "javierfreilemartin won by resignation"]

1. e4 {[%clk 0:02:59.9]} 1... c5 {[%clk 0:02:58.8]} 2. Nf3 {[%clk 0:02:48]} 2...
d6 {[%clk 0:02:57.9]} 3. Bb5+ {[%clk 0:02:42.7]} 3... Nd7 {[%clk 0:02:56.8]} 4.
O-O {[%clk 0:02:40.2]} 4... Nf6 {[%clk 0:02:52.9]} 5. Re1 {[%clk 0:02:12.2]}
5... e5 {[%clk 0:02:51.7]} 6. c3 {[%clk 0:02:07.7]} 6... Be7 {[%clk 0:02:51.4]}
7. d4 {[%clk 0:02:04.6]} 7... O-O {[%clk 0:02:50.1]} 8. Na3 {[%clk 0:01:52.9]}
8... cxd4 {[%clk 0:02:47.7]} 9. cxd4 {[%clk 0:01:51.8]} 9... exd4 {[%clk
0:02:47.2]} 10. Nxd4 {[%clk 0:01:48.6]} 10... Ne5 {[%clk 0:02:37.9]} 11. Bf1
{[%clk 0:01:45.8]} 11... a6 {[%clk 0:02:35.5]} 12. Kh1 {[%clk 0:01:34.1]} 12...
Re8 {[%clk 0:02:09.9]} 13. Nf5 {[%clk 0:01:31.7]} 13... Bf8 {[%clk 0:02:06.1]}
14. Bg5 {[%clk 0:01:24]} 14... Neg4 {[%clk 0:01:52.4]} 15. Kg1 {[%clk
0:00:43.7]} 15... Qb6 {[%clk 0:01:42.9]} 16. Bxf6 {[%clk 0:00:14.8]} 16... Qxf2+
{[%clk 0:01:37.1]} 17. Kh1 {[%clk 0:00:14.3]} 17... Nxf6 {[%clk 0:01:36.7]} 18.
Qe2 {[%clk 0:00:12.5]} 18... Qxe2 {[%clk 0:01:32.4]} 19. Rxe2 {[%clk 0:00:12.7]}
19... Nxe4 {[%clk 0:01:30]} 20. Rae1 {[%clk 0:00:09.5]} 20... Bxf5 {[%clk
0:01:29]} 21. Kg1 {[%clk 0:00:08.3]} 21... Nf6 {[%clk 0:01:26.1]} 22. Rxe8
{[%clk 0:00:06.7]} 22... Rxe8 {[%clk 0:01:25.1]} 23. Rxe8 {[%clk 0:00:07.4]}
23... Nxe8 {[%clk 0:01:23.7]} 24. Nc4 {[%clk 0:00:08.1]} 24... d5 {[%clk
0:01:22.2]} 0-1

[Event "Late-Titled-Tuesday-Blitz-March-12-2024"]
[Site "Chess.com"]
[Date "2024.03.12"]
[Round "5"]
[White "Schattman"]
[Black "mightysmasher"]
[Result "0-1"]
[WhiteElo "2446"]
[BlackElo "2596"]
[TimeControl "180+1"]
[EndTime "14:52:32 PDT"]
[Termination "mightysmasher won by checkmate"]

1. f4 {[%clk 0:03:00.9]} 1... d5 {[%clk 0:02:56]} 2. Nf3 {[%clk 0:02:59.3]} 2...
c5 {[%clk 0:02:55.3]} 3. g3 {[%clk 0:02:59.6]} 3... Nc6 {[%clk 0:02:55.7]} 4.
Bg2 {[%clk 0:03:00.1]} 4... Nf6 {[%clk 0:02:55.2]} 5. d3 {[%clk 0:02:59.6]} 5...
g6 {[%clk 0:02:55.8]} 6. O-O {[%clk 0:02:59.3]} 6... Bg7 {[%clk 0:02:56.3]} 7.
c3 {[%clk 0:02:59.9]} 7... O-O {[%clk 0:02:56.8]} 8. Qc2 {[%clk 0:03:00.5]} 8...
b6 {[%clk 0:02:54.9]} 9. e4 {[%clk 0:02:59.6]} 9... Bb7 {[%clk 0:02:54.1]} 10.
h3 {[%clk 0:03:00]} 10... Re8 {[%clk 0:02:52.9]} 11. e5 {[%clk 0:02:59.2]} 11...
Nd7 {[%clk 0:02:52.3]} 12. d4 {[%clk 0:02:54.8]} 12... e6 {[%clk 0:02:51.1]} 13.
Be3 {[%clk 0:02:53.5]} 13... Rc8 {[%clk 0:02:50.6]} 14. Qe2 {[%clk 0:02:48.1]}
14... Na5 {[%clk 0:02:48.1]} 15. b3 {[%clk 0:02:46.1]} 15... cxd4 {[%clk
0:02:43.2]} 16. cxd4 {[%clk 0:02:39.9]} 16... Qc7 {[%clk 0:02:43]} 17. Rc1
{[%clk 0:02:29.4]} 17... Qd8 {[%clk 0:02:36.2]} 18. Nbd2 {[%clk 0:02:25.4]}
18... Nc6 {[%clk 0:02:34.7]} 19. a3 {[%clk 0:02:12.9]} 19... Qe7 {[%clk
0:02:26.6]} 20. Bf1 {[%clk 0:02:11.2]} 20... f6 {[%clk 0:02:24.4]} 21. h4 {[%clk
0:02:06.5]} 21... fxe5 {[%clk 0:02:22.2]} 22. fxe5 {[%clk 0:02:06.4]} 22... Rf8
{[%clk 0:02:20.9]} 23. Bh3 {[%clk 0:01:49.6]} 23... h6 {[%clk 0:02:13.6]} 24.
Qd3 {[%clk 0:01:36.4]} 24... Qe8 {[%clk 0:01:58.2]} 25. b4 {[%clk 0:01:30.3]}
25... a6 {[%clk 0:01:43.1]} 26. Kg2 {[%clk 0:01:29.5]} 26... b5 {[%clk 0:01:41]}
27. Nb3 {[%clk 0:01:28.1]} 27... Rxf3 {[%clk 0:01:29.7]} 28. Rxc6 {[%clk
0:01:11.2]} 28... Bxc6 {[%clk 0:01:00.9]} 29. Kxf3 {[%clk 0:01:05.6]} 29...
Nxe5+ {[%clk 0:01:00.9]} 30. dxe5 {[%clk 0:00:54.4]} 30... d4+ {[%clk
0:01:00.8]} 31. Qe4 {[%clk 0:00:54.9]} 31... Bxe4+ {[%clk 0:01:00.3]} 32. Kxe4
{[%clk 0:00:55.4]} 32... Qc6+ {[%clk 0:00:56.9]} 33. Kxd4 {[%clk 0:00:54.1]}
33... Rd8# {[%clk 0:00:57.2]} 0-1

[Event "Late-Titled-Tuesday-Blitz-March-12-2024"]
[Site "Chess.com"]
[Date "2024.03.12"]
[Round "5"]
[White "MatthewG-p4p"]
[Black "Firouzja2003"]
[Result "0-1"]
[WhiteElo "2910"]
[BlackElo "3135"]
[TimeControl "180+1"]
[EndTime "14:52:42 PDT"]
[Termination "Firouzja2003 won by resignation"]

1. e4 {[%clk 0:02:58.6]} 1... e6 {[%clk 0:02:59.6]} 2. d4 {[%clk 0:02:57.2]}
2... d5 {[%clk 0:03:00.5]} 3. e5 {[%clk 0:02:57.7]} 3... c5 {[%clk 0:03:00.6]}
4. c3 {[%clk 0:02:58.4]} 4... Nc6 {[%clk 0:03:01.5]} 5. Nf3 {[%clk 0:02:58.9]}
5... Bd7 {[%clk 0:03:02.1]} 6. Be2 {[%clk 0:02:58.9]} 6... Nge7 {[%clk
0:03:02.7]} 7. Na3 {[%clk 0:02:58.4]} 7... Nf5 {[%clk 0:02:58.7]} 8. Nc2 {[%clk
0:02:58.3]} 8... cxd4 {[%clk 0:02:58.6]} 9. cxd4 {[%clk 0:02:59.2]} 9... Be7
{[%clk 0:02:58.9]} 10. O-O {[%clk 0:02:59.1]} 10... O-O {[%clk 0:02:59.3]} 11.
Bd3 {[%clk 0:02:58.8]} 11... f6 {[%clk 0:02:59.5]} 12. g4 {[%clk 0:02:28.8]}
12... fxe5 {[%clk 0:02:43]} 13. dxe5 {[%clk 0:02:03.9]} 13... Nh6 {[%clk
0:02:42]} 14. h3 {[%clk 0:01:58.9]} 14... Nf7 {[%clk 0:02:41.2]} 15. Re1 {[%clk
0:01:56.8]} 15... Ng5 {[%clk 0:02:35.1]} 16. Nxg5 {[%clk 0:01:53.4]} 16... Bxg5
{[%clk 0:02:36]} 17. Bxg5 {[%clk 0:01:35.3]} 17... Qxg5 {[%clk 0:02:36.9]} 18.
Qc1 {[%clk 0:01:35.1]} 18... Rf4 {[%clk 0:02:25.1]} 19. Qe3 {[%clk 0:01:33.2]}
19... Raf8 {[%clk 0:02:24.9]} 20. Rad1 {[%clk 0:01:12.3]} 20... h5 {[%clk
0:02:09.6]} 21. Qg3 {[%clk 0:00:37.3]} 21... hxg4 {[%clk 0:02:03.3]} 22. Ne3
{[%clk 0:00:31.2]} 22... Nxe5 {[%clk 0:02:03.2]} 23. Be2 {[%clk 0:00:31.6]}
23... Rxf2 {[%clk 0:01:59.4]} 24. Nxg4 {[%clk 0:00:28.3]} 24... R2f4 {[%clk
0:01:54.9]} 25. Rf1 {[%clk 0:00:25.4]} 25... Ng6 {[%clk 0:01:51.6]} 26. Rxf4
{[%clk 0:00:23.9]} 26... Nxf4 {[%clk 0:01:51.6]} 27. Bf1 {[%clk 0:00:24.5]}
27... e5 {[%clk 0:01:51.4]} 28. Re1 {[%clk 0:00:18]} 28... Bxg4 {[%clk
0:01:51.4]} 29. hxg4 {[%clk 0:00:18.3]} 29... g6 {[%clk 0:01:51.6]} 30. Re3
{[%clk 0:00:16.3]} 30... Kg7 {[%clk 0:01:51.7]} 31. Rb3 {[%clk 0:00:16.8]} 31...
Rf7 {[%clk 0:01:52]} 32. Rb5 {[%clk 0:00:16.7]} 32... e4 {[%clk 0:01:51.5]} 33.
Qe3 {[%clk 0:00:16]} 33... Qxg4+ {[%clk 0:01:50.7]} 34. Kh2 {[%clk 0:00:16.1]}
34... Qh4+ {[%clk 0:01:48.7]} 35. Kg1 {[%clk 0:00:16.6]} 35... Qg5+ {[%clk
0:01:49.5]} 36. Kh2 {[%clk 0:00:16.7]} 36... Qe5 {[%clk 0:01:49.8]} 37. Qg3
{[%clk 0:00:16.4]} 37... Qh5+ {[%clk 0:01:49.8]} 38. Kg1 {[%clk 0:00:16.6]}
38... Qf5 {[%clk 0:01:46.8]} 39. Qc3+ {[%clk 0:00:15.2]} 39... Qf6 {[%clk
0:01:47.4]} 40. Qg3 {[%clk 0:00:14.3]} 40... Nh5 {[%clk 0:01:47.4]} 41. Qg2
{[%clk 0:00:14.8]} 41... Qd4+ {[%clk 0:01:47.5]} 42. Kh1 {[%clk 0:00:15.6]}
42... Rxf1+ {[%clk 0:01:46.9]} 43. Qxf1 {[%clk 0:00:15.4]} 43... Ng3+ {[%clk
0:01:46.6]} 0-1

[Event "Late-Titled-Tuesday-Blitz-March-12-2024"]
[Site "Chess.com"]
[Date "2024.03.12"]
[Round "5"]
[White "ukchessbomber"]
[Black "finec2"]
[Result "1-0"]
[WhiteElo "2628"]
[BlackElo "2205"]
[TimeControl "180+1"]
[EndTime "14:52:43 PDT"]
[Termination "ukchessbomber won by resignation"]

1. b4 {[%clk 0:02:51.5]} 1... d5 {[%clk 0:02:58.7]} 2. Bb2 {[%clk 0:02:51.8]}
2... Qd6 {[%clk 0:02:58.9]} 3. a3 {[%clk 0:02:51.7]} 3... e5 {[%clk 0:02:58.4]}
4. e3 {[%clk 0:02:52.3]} 4... Be6 {[%clk 0:02:49.1]} 5. d3 {[%clk 0:02:52.3]}
5... Nd7 {[%clk 0:02:48.9]} 6. g3 {[%clk 0:02:52.3]} 6... c6 {[%clk 0:02:48.7]}
7. Bg2 {[%clk 0:02:52.2]} 7... Qc7 {[%clk 0:02:46.2]} 8. Nd2 {[%clk 0:02:52.5]}
8... Ngf6 {[%clk 0:02:44.2]} 9. Ngf3 {[%clk 0:02:52.9]} 9... Bd6 {[%clk
0:02:44]} 10. O-O {[%clk 0:02:53.1]} 10... O-O {[%clk 0:02:44]} 11. c4 {[%clk
0:02:53.5]} 11... Qd8 {[%clk 0:02:31.2]} 12. Qc1 {[%clk 0:02:52.7]} 12... Rc8
{[%clk 0:02:28.5]} 13. Bc3 {[%clk 0:02:52.6]} 13... Re8 {[%clk 0:02:20.8]} 14.
Qb2 {[%clk 0:02:52.6]} 14... Bf5 {[%clk 0:02:20.3]} 15. e4 {[%clk 0:02:49.8]}
15... Bg4 {[%clk 0:02:06.5]} 16. exd5 {[%clk 0:02:42.4]} 16... cxd5 {[%clk
0:02:04.7]} 17. c5 {[%clk 0:02:43.3]} 17... Bb8 {[%clk 0:02:03.5]} 18. d4 {[%clk
0:02:43.6]} 18... e4 {[%clk 0:01:50.4]} 19. Ne1 {[%clk 0:02:43.8]} 19... Be2
{[%clk 0:01:48.7]} 20. Nc2 {[%clk 0:02:44.1]} 20... Bxf1 {[%clk 0:01:48.7]} 21.
Nxf1 {[%clk 0:02:44.8]} 21... Nf8 {[%clk 0:01:43.5]} 22. Nfe3 {[%clk 0:02:45.4]}
22... Ng6 {[%clk 0:01:37.3]} 23. a4 {[%clk 0:02:46.3]} 23... Qd7 {[%clk
0:01:30.8]} 24. b5 {[%clk 0:02:46.3]} 24... Rcd8 {[%clk 0:01:28.5]} 25. Rb1
{[%clk 0:02:45.7]} 25... h5 {[%clk 0:01:20]} 26. h4 {[%clk 0:02:43.8]} 26... Ng4
{[%clk 0:01:05.7]} 27. a5 {[%clk 0:02:43.7]} 27... a6 {[%clk 0:00:53.7]} 28.
bxa6 {[%clk 0:02:44.6]} 28... bxa6 {[%clk 0:00:53.5]} 29. Bf1 {[%clk 0:02:45]}
29... Nxe3 {[%clk 0:00:47.4]} 30. Nxe3 {[%clk 0:02:44.8]} 30... f5 {[%clk
0:00:40.1]} 31. Qb7 {[%clk 0:02:43.9]} 31... Qxb7 {[%clk 0:00:28.3]} 32. Rxb7
{[%clk 0:02:44.8]} 32... f4 {[%clk 0:00:28.2]} 33. Nf5 {[%clk 0:02:43.6]} 33...
Nf8 {[%clk 0:00:14]} 34. Rxg7+ {[%clk 0:02:42.4]} 34... Kh8 {[%clk 0:00:14.4]}
35. Rg5 {[%clk 0:02:43]} 35... e3 {[%clk 0:00:13.3]} 36. Rxh5+ {[%clk 0:02:42]}
36... Kg8 {[%clk 0:00:13.8]} 37. Rg5+ {[%clk 0:02:42.9]} 37... Kh8 {[%clk
0:00:13.2]} 38. fxe3 {[%clk 0:02:40.3]} 38... fxe3 {[%clk 0:00:13.3]} 39. Be2
{[%clk 0:02:40.3]} 39... Rd7 {[%clk 0:00:11.8]} 40. Bxa6 {[%clk 0:02:38.5]}
40... Ra7 {[%clk 0:00:11.4]} 41. Bb5 {[%clk 0:02:36.3]} 41... Re4 {[%clk
0:00:09.3]} 42. Bd3 {[%clk 0:02:36]} 42... Re6 {[%clk 0:00:07.5]} 43. Kf1 {[%clk
0:02:33.7]} 43... Rf7 {[%clk 0:00:06.1]} 44. Ke2 {[%clk 0:02:33.7]} 44... Ref6
{[%clk 0:00:06.2]} 45. g4 {[%clk 0:02:32.8]} 45... Rg6 {[%clk 0:00:05.3]} 46.
Rxg6 {[%clk 0:02:31.9]} 46... Nxg6 {[%clk 0:00:05.2]} 47. Kxe3 {[%clk
0:02:32.2]} 47... Ne7 {[%clk 0:00:04.2]} 48. a6 {[%clk 0:02:30.5]} 48... Nxf5+
{[%clk 0:00:04.3]} 49. Bxf5 {[%clk 0:02:31]} 49... Ba7 {[%clk 0:00:04.5]} 50.
Ba5 {[%clk 0:02:30.9]} 50... Rf6 {[%clk 0:00:04.9]} 51. Bc8 {[%clk 0:02:28.6]}
51... Rc6 {[%clk 0:00:04.8]} 52. Bb7 {[%clk 0:02:28.6]} 52... Re6+ {[%clk
0:00:04.9]} 53. Kd3 {[%clk 0:02:28.1]} 53... Kg7 {[%clk 0:00:05.8]} 54. Bb6
{[%clk 0:02:27.4]} 54... Bxb6 {[%clk 0:00:05.6]} 55. cxb6 {[%clk 0:02:27.7]}
55... Rxb6 {[%clk 0:00:05.7]} 56. a7 {[%clk 0:02:28.4]} 1-0